fUSD/lending_fUSD_20250623
["ID","MTS","AMOUNT","RATE_DAILY","PERIOD"]
[367100034,1750657846253,-970.83519453,0.000229,8]
[367100399,1750657949313,153.07,0.00013699,2]
[367100412,1750658497518,-161.76,0.00019992,2]
[367100446,1750658975848,153.07,0.00013699,2]
[367100449,1750659011065,-495.19,0.00025758,120]
[367100450,1750659011099,-151.0,0.0002697,120]
[367100451,1750659011143,-151.0,0.0002698,120]
[367100452,1750659011174,-151.0,0.0002699,120]
[367100453,1750659011204,-189.68,0.00026997,120]
[367100454,1750659011246,-164.59,0.00027367,120]
[367100455,1750659011280,-150.5,0.00027377,120]
[367100456,1750659011316,-150.5,0.00027387,120]
[367100457,1750659026383,-3618.68558462,0.00037868,120]
[367100458,1750659026418,-162066.69991657,0.00037868,91]
[367100459,1750659026464,-428.51366138,0.00037868,60]
[367100460,1750659026498,-208.78472641,0.00037868,91]
[367100461,1750659026534,-1521.72033904,0.00037868,120]
[367100462,1750659026565,-152.71850096,0.00037868,120]
[367100463,1750659026595,-445.07359529,0.00037868,120]
[367100464,1750659026624,-180.16049001,0.00037868,120]
[367100465,1750659026656,-429.48445122,0.00037868,120]
[367100466,1750659026689,-994.99032423,0.00037868,120]
[367100467,1750659026718,-540.94361997,0.00037868,120]
[367100468,1750659026747,-336.71173607,0.00037868,120]
[367100469,1750659026782,-153.61976589,0.00037868,120]
[367100470,1750659026811,-515.15942685,0.00037868,120]
[367100471,1750659026842,-2036.72980261,0.00037868,120]
[367100472,1750659026878,-627.18743898,0.00037868,60]
[367100473,1750659026907,-11984.43,0.00037868,120]
[367100474,1750659026935,-30000.0,0.00037868,120]
[367100475,1750659026965,-557529.07,0.00037868,60]
[367100476,1750659026993,-350.0,0.00037868,120]
[367100477,1750659027022,-178.27499487,0.00037868,60]
[367100478,1750659027052,-317.0,0.00037868,60]
[367100479,1750659027081,-317.0,0.00037868,60]
[367100480,1750659027110,-317.0,0.00037868,60]
[367100481,1750659027141,-317.0,0.00037868,60]
[367100482,1750659027172,-317.0,0.00037868,60]
[367100483,1750659027205,-317.0,0.00037868,60]
[367100484,1750659027236,-317.0,0.00037868,60]
[367100485,1750659027268,-317.0,0.00037868,60]
[367100486,1750659027300,-317.0,0.00037868,60]
[367100487,1750659027330,-317.0,0.00037868,60]
[367100488,1750659027361,-317.0,0.00037868,60]
[367100489,1750659027391,-326.0,0.00037868,60]
[367100490,1750659027422,-231.96353486,0.00037868,120]
[367100491,1750659027454,-13340.48462384,0.00037868,120]
[367100492,1750659027484,-196.94639597,0.00037868,90]
[367100493,1750659027515,-563.08738425,0.00037868,120]
[367100494,1750659027545,-319.95684738,0.00037868,120]
[367100495,1750659027576,-395.85670848,0.00037868,120]
[367100496,1750659027606,-322.32872958,0.00037868,120]
[367100497,1750659027635,-400.27520752,0.00037868,120]
[367100498,1750659027664,-1527.61425111,0.00037868,60]
[367100499,1750659027694,-186.13226804,0.00037868,120]
[367100500,1750659027725,-766.34762608,0.00037868,120]
[367100501,1750659027755,-197.34972592,0.00037868,120]
[367100502,1750659027786,-281.89032942,0.00037868,120]
[367100503,1750659027818,-175.92157395,0.00037868,120]
[367100504,1750659027849,-453.07161049,0.00037868,120]
[367100505,1750659027878,-171.58933669,0.00037868,120]
[367100506,1750659027908,-270.0,0.00037868,120]
[367100507,1750659027937,-653231.0,0.00037868,60]
[367100508,1750659027984,-3528.30320398,0.00037868,120]
[367100509,1750659028021,-2397.16195057,0.00037868,120]
[367100510,1750659028055,-185.24740601,0.00037868,120]
[367100511,1750659028087,-287.65126722,0.00037868,120]
[367100512,1750659028119,-1000.0,0.00037868,120]
[367100513,1750659028150,-3218.5479998,0.00037868,120]
[367100514,1750659032133,-1302.83025019,0.000216,2]
[367100515,1750659032191,-697.16974981,0.000216,2]
[367100516,1750659032201,-641.64081688,0.00021999,2]
[367100571,1750659037973,-255.35918312,0.00021999,2]
[367100572,1750659037983,-201.59081292,0.00022,2]
[367100573,1750659038087,-1122.9312622,0.00022,2]
[367100574,1750659038152,-1675.47792488,0.00022,2]
[367100575,1750659038162,-312.55491274,0.00022,2]
[367100878,1750659040536,-342.62115602,0.00022,2]
[367100880,1750659040548,-1127.94465,0.00022,2]
[367100883,1750659040560,-1932.71560727,0.00022,2]
[367101397,1750659043182,-3966.64890595,0.00022,2]
[367101400,1750659043195,-2081.80298648,0.00022,2]
[367101767,1750659046365,-2715.55112868,0.00022,2]
[367102113,1750659093015,150.5,0.0002699,120]
[367102114,1750659093472,150.5,0.0002698,120]
[367102115,1750659093902,150.5,0.0002697,120]
[367102116,1750659101353,249.38261,0.00037868,120]
[367102733,1750659189854,-2624.46886635,0.00022,2]
[367102734,1750659189887,-151.0,0.00022,2]
[367102783,1750659251700,200.0,0.00021956,2]
[367102784,1750659254832,350.0,0.00037868,60]
[367102816,1750659307875,161.76,0.00019698,2]
[367102817,1750659428160,-160.67408386,0.0002212,2]
[367102818,1750659431095,-1203.66306592,0.0002212,2]
[367102819,1750659433250,-340.53,0.0002212,2]
[367102820,1750659435053,-1182.20827596,0.0002212,2]
[367102821,1750659437625,-298.35605426,0.0002212,2]
[367102823,1750659493095,-605.30701166,0.0002212,2]
[367102824,1750659496537,-207.74633876,0.0002212,2]
[367102825,1750659498115,-159.18,0.0002212,2]
[367102826,1750659500910,-273.46229958,0.0002212,2]
[367102828,1750659605199,1024.68290264,0.0003787,120]
[367102829,1750659606289,173.75,0.00018042,2]
[367102830,1750659615192,5532.6,0.00022,5]
[367102831,1750659646017,870.52,0.00022,30]
[367102832,1750659656472,652.89,0.00027397,120]
[367102833,1750659672582,-2866.29113,0.0002212,2]
[367102834,1750659672609,-1017.19,0.00022222,2]
[367102835,1750659672634,-151.0,0.00022222,2]
[367102836,1750659672660,-250.0,0.00022388,2]
[367102837,1750659672685,-1308.01,0.00022393,2]
[367102838,1750659672710,-696.03,0.00022393,2]
[367102839,1750659672737,-291.0,0.00022394,2]
[367102840,1750659672761,-300.0,0.00022394,2]
[367102841,1750659672787,-12254.92,0.00022396,2]
[367102842,1750659672811,-167.01,0.00022495,2]
[367102843,1750659672835,-24405.54887,0.000225,2]
[367102845,1750659929537,2698.69126545,0.000199,2]
[367102850,1750660006181,153.07,0.00013699,2]
[367102864,1750660106195,809.14962516,0.0003787,120]
[367102866,1750660150574,2185.02,0.0003787,60]
[367102867,1750660154475,348.01,0.00022033,2]
[367102869,1750660191055,2071.66,0.00022033,2]
[367103360,1750660241636,-200.0,0.00022194,2]
[367103362,1750660241645,-1038.07971,0.0002227,2]
[367103364,1750660241657,-200.0,0.0002232,2]
[367103366,1750660241667,-158.26,0.00022329,2]
[367103368,1750660241677,-158.26,0.00022335,2]
[367103370,1750660241686,-158.26,0.00022341,2]
[367103372,1750660241696,-158.26,0.00022346,2]
[367103374,1750660241705,-158.26,0.00022352,2]
[367103376,1750660241715,-158.26,0.00022358,2]
[367103378,1750660241726,-1448.65,0.00022359,2]
[367103380,1750660241735,-158.26,0.00022364,2]
[367103382,1750660241745,-158.26,0.0002237,2]
[367103384,1750660241755,-158.26,0.00022376,2]
[367103386,1750660241763,-158.26,0.00022382,2]
[367103387,1750660241773,-158.26,0.00022387,2]
[367103390,1750660241784,-158.26,0.00022393,2]
[367103391,1750660241794,-158.26,0.00022399,2]
[367103393,1750660241804,-158.26,0.00022405,2]
[367103395,1750660241813,-158.26,0.00022411,2]
[367103397,1750660241823,-158.26,0.00022417,2]
[367103400,1750660241833,-158.26,0.00022423,2]
[367103401,1750660241843,-158.26,0.00022429,2]
[367103404,1750660241853,-158.26,0.00022434,2]
[367103405,1750660241863,-158.26,0.0002244,2]
[367103407,1750660241872,-200.0,0.00022487,2]
[367103410,1750660241882,-151.0,0.00022487,2]
[367103411,1750660241892,-151.0,0.00022487,2]
[367103413,1750660241901,-151.0,0.00022487,2]
[367103415,1750660241911,-151.0,0.00022487,2]
[367103417,1750660241920,-151.0,0.00022487,2]
[367103419,1750660241929,-151.0,0.00022487,2]
[367103421,1750660241939,-151.0,0.00022487,2]
[367103423,1750660241949,-151.0,0.00022487,2]
[367103425,1750660241958,-151.0,0.00022487,2]
[367103427,1750660241968,-151.0,0.00022487,2]
[367103429,1750660241978,-151.0,0.00022487,2]
[367103431,1750660241987,-151.0,0.00022487,2]
[367103434,1750660241997,-151.0,0.00022487,2]
[367103435,1750660242007,-151.0,0.00022487,2]
[367103437,1750660242016,-151.0,0.00022487,2]
[367103440,1750660242026,-151.0,0.00022487,2]
[367103441,1750660242035,-307.80774941,0.00022495,2]
[367103444,1750660242045,-69881.55402507,0.000225,2]
[367103472,1750660242306,-90.43976772,0.000225,2]
[367103488,1750660242458,-969.85513658,0.000225,2]
[367103493,1750660242493,-172.96117343,0.000225,2]
[367103495,1750660242504,-151.0,0.000225,2]
[367103497,1750660242514,-866.21971206,0.00022501,2]
[367103499,1750660242525,-133.78028794,0.00022501,2]
[367103501,1750660242535,-189.68,0.00022514,2]
[367103503,1750660242545,-151.0,0.00022542,2]
[367103505,1750660242554,-666.0,0.00022584,2]
[367103507,1750660242563,-151.0,0.00022597,2]
[367103509,1750660242573,-151.0,0.00022652,2]
[367103511,1750660242582,-174.3,0.0002266,2]
[367103513,1750660242592,-151.0,0.00022707,2]
[367103515,1750660242601,-859.787398,0.00022735,4]
[367103517,1750660242610,-182.27142857,0.00022755,7]
[367103584,1750660243190,-17.72857143,0.00022755,7]
[367103586,1750660243199,-207.0,0.00022758,2]
[367103588,1750660243208,-151.0,0.00022762,2]
[367103590,1750660243220,-151.0,0.00022817,2]
[367103592,1750660243229,-151.0,0.00022872,2]
[367103594,1750660243239,-495.19,0.00022896,2]
[367103596,1750660243248,-151.0,0.00022899,2]
[367103598,1750660243257,-295.98896733,0.00022899,2]
[367103600,1750660243266,-151.0,0.00022927,2]
[367103602,1750660243275,-247.0,0.00022957,2]
[367103604,1750660243285,-151.0,0.00022982,2]
[367103606,1750660243294,-2958.837374,0.00023,2]
[367103611,1750660243328,-41.162626,0.00023,2]
[367103613,1750660243337,-165.0,0.00023,7]
[367103615,1750660243346,-166.46987632,0.00023,8]
[367103617,1750660243357,-1518.40198395,0.00023,8]
[367103619,1750660243366,-151.0,0.00023037,2]
[367103621,1750660243375,-124.25021917,0.00023041,2]
[367103624,1750660243394,-42.60978083,0.00023041,2]
[367103626,1750660243404,-156.587,0.00023048,2]
[367103628,1750660243414,-151.0,0.00023092,2]
[367103630,1750660243426,-151.0,0.00023147,2]
[367103632,1750660243435,-170.3,0.0002317,2]
[367103634,1750660243444,-224.96076288,0.0002318,2]
[367103636,1750660243453,-443.50804999,0.0002319,5]
[367103639,1750660243465,-354.31833141,0.0002319,5]
[367103641,1750660243475,-1000.0,0.00023199,2]
[367103643,1750660243484,-1000.0,0.00023199,2]
[367103645,1750660243495,-1000.0,0.00023199,2]
[367103647,1750660243504,-1000.0,0.00023199,2]
[367103649,1750660243513,-1000.0,0.00023199,2]
[367103651,1750660243522,-1000.0,0.00023199,2]
[367103653,1750660243531,-1000.0,0.00023199,2]
[367103655,1750660243540,-1000.0,0.00023199,2]
[367103656,1750660243550,-1005.05292866,0.00023199,2]
[367103659,1750660243559,-232.75766949,0.00023202,2]
[367103660,1750660243568,-235.9553342,0.00023208,2]
[367103662,1750660243578,-1038.07971,0.0002327,2]
[367103664,1750660243588,-150.0,0.00023288,2]
[367103667,1750660243597,-500.0,0.00023288,2]
[367103668,1750660243607,-500.0,0.00023288,2]
[367103670,1750660243616,-1684.87185998,0.00023314,9]
[367103672,1750660243625,-500.0,0.00023315,2]
[367103674,1750660243635,-500.0,0.00023315,2]
[367103676,1750660243644,-150.0,0.00023318,2]
[367103679,1750660243654,-150.0,0.00023318,2]
[367103680,1750660243663,-150.0,0.00023318,2]
[367103682,1750660243673,-150.0,0.00023318,2]
[367103684,1750660243682,-630.87,0.00023332,2]
[367103686,1750660243692,-630.87,0.00023338,2]
[367103688,1750660243701,-500.0,0.00023343,2]
[367103690,1750660243711,-500.0,0.00023343,2]
[367103693,1750660243721,-630.87,0.00023344,2]
[367103695,1750660243731,-150.0,0.00023345,2]
[367103697,1750660243741,-150.0,0.00023345,2]
[367103699,1750660243750,-630.87,0.0002335,2]
[367103701,1750660243760,-259.68065015,0.00023356,2]
[367103715,1750660243925,-371.18934985,0.00023356,2]
[367103717,1750660243939,-630.87,0.00023363,2]
[367103719,1750660243948,-236.49465362,0.00023369,2]
[367103721,1750660243959,-394.37534638,0.00023369,2]
[367103723,1750660243969,-500.0,0.0002337,2]
[367103725,1750660243979,-500.0,0.0002337,2]
[367103727,1750660243988,-200.0,0.00023373,2]
[367103729,1750660243997,-200.0,0.00023373,2]
[367103731,1750660244006,-630.87,0.00023375,2]
[367103733,1750660244016,-630.87,0.00023381,2]
[367103735,1750660244025,-630.87,0.00023387,2]
[367103737,1750660244034,-630.87,0.00023393,2]
[367103739,1750660244044,-500.0,0.00023397,2]
[367103741,1750660244053,-500.0,0.00023398,2]
[367103743,1750660244064,-500.0,0.00023398,2]
[367103745,1750660244073,-630.87,0.00023399,2]
[367103747,1750660244083,-630.87,0.00023406,2]
[367103749,1750660244092,-630.87,0.00023412,2]
[367103751,1750660244100,-630.87,0.00023418,2]
[367103753,1750660244109,-630.87,0.00023424,2]
[367103755,1750660244118,-508.29570289,0.00023425,2]
[367103757,1750660244127,-500.0,0.00023425,2]
[367103759,1750660244136,-630.87,0.0002343,2]
[367103761,1750660244145,-630.87,0.00023436,2]
[367103763,1750660244155,-630.87,0.00023442,2]
[367103765,1750660244165,-67.1744611,0.00023449,2]
[367104033,1750660246458,-151.0,0.00023356,2]
[367104035,1750660246468,-295.98896733,0.00023369,2]
[367104037,1750660246477,-563.6955389,0.00023449,2]
[367104039,1750660246487,-500.0,0.00023452,2]
[367104041,1750660246497,-500.0,0.0002348,2]
[367104043,1750660246506,-500.0,0.00023507,2]
[367104045,1750660246516,-500.0,0.00023535,2]
[367104047,1750660246524,-500.0,0.00023562,2]
[367104049,1750660246533,-500.0,0.00023589,2]
[367104051,1750660246543,-162.380719,0.00023596,2]
[367104053,1750660246552,-500.0,0.00023617,2]
[367104055,1750660246562,-151.27791352,0.0002362,2]
[367104057,1750660246571,-152.95123284,0.0002362,2]
[367104058,1750660246580,-150.51685062,0.0002362,2]
[367104060,1750660246590,-150.0,0.0002362,2]
[367104062,1750660246600,-152.58749801,0.0002362,2]
[367104064,1750660246609,-150.69836222,0.0002362,2]
[367104066,1750660246619,-152.5806326,0.0002362,2]
[367104068,1750660246628,-500.0,0.00023644,2]
[367104070,1750660246638,-150.0,0.00023647,2]
[367104072,1750660246647,-500.0,0.00023672,2]
[367104074,1750660246657,-200.0,0.00023675,2]
[367104076,1750660246667,-500.0,0.00023699,2]
[367104078,1750660246676,-500.0,0.00023726,2]
[367104080,1750660246686,-433.08737595,0.00023754,2]
[367104082,1750660246695,-1156.38895095,0.00023783,2]
[367104084,1750660246705,-169.78924093,0.00023815,2]
[367104086,1750660246715,-327.68,0.00023836,2]
[367104088,1750660246726,-151.0,0.00023836,2]
[367104090,1750660246735,-205.14,0.00023894,2]
[367104092,1750660246745,-5418.53795433,0.000239,2]
[367104094,1750660246755,-300.0,0.0002392,2]
[367104096,1750660246764,-1072.12,0.00023999,2]
[367104098,1750660246773,-28604.0787628,0.00024,2]
[367104104,1750660246822,-312.4,0.00024,2]
[367104122,1750660629973,165.0,0.00022,2]
[367104123,1750660642244,161.76,0.00021533,2]
[367104125,1750660731365,6768.25252538,0.00037872,60]
[367104127,1750660813976,391.55,0.00026277,120]
[367104128,1750660909786,155.22431682,0.00037873,120]
[367104129,1750660961981,200.0,0.00021418,2]
[367104131,1750661013004,150.5,0.00027387,120]
[367104132,1750661013539,150.5,0.00027377,120]
[367104133,1750661013989,150.5,0.00027367,120]
[367104134,1750661117960,153.13,0.00013699,2]
[367104136,1750661229783,165.0,0.00022,2]
[367104147,1750661432474,-200.0,0.00022687,2]
[367104148,1750661432483,-655.88571947,0.00023252,2]
[367104149,1750661432506,-88.11428053,0.00023252,2]
[367104150,1750661432516,-7902.99,0.00023253,2]
[367104151,1750661432525,-200.0,0.00023262,7]
[367104152,1750661432535,-151.0,0.00023288,2]
[367104153,1750661432544,-150.0,0.00023288,2]
[367104154,1750661432553,-174.0,0.000233,2]
[367104155,1750661432563,-23900.0,0.00023318,2]
[367104156,1750661432573,-167.01,0.00023338,2]
[367104157,1750661432583,-205.72,0.00023344,2]
[367104158,1750661432593,-391.55,0.00023358,2]
[367104159,1750661432603,-500.0,0.00023589,2]
[367104160,1750661432613,-151.0,0.00023649,2]
[367104161,1750661432623,-1200.0,0.00023649,2]
[367104162,1750661432632,-151.0,0.00023649,2]
[367104163,1750661432642,-1200.0,0.00023649,2]
[367104164,1750661432651,-151.0,0.00023649,2]
[367104165,1750661432660,-1304.2337344,0.00023649,2]
[367104166,1750661432669,-151.0,0.00023649,2]
[367104167,1750661432679,-151.0,0.00023649,2]
[367104168,1750661432689,-151.0,0.00023649,2]
[367104169,1750661432699,-151.0,0.00023649,2]
[367104171,1750661432707,-154.0,0.00023649,2]
[367104172,1750661432717,-151.0,0.00023649,2]
[367104174,1750661432726,-154.0,0.00023649,2]
[367104176,1750661432735,-151.0,0.00023649,2]
[367104178,1750661432746,-154.0,0.00023649,2]
[367104181,1750661432757,-151.0,0.00023649,2]
[367104182,1750661432766,-154.0,0.00023649,2]
[367104184,1750661432776,-151.0,0.00023649,2]
[367104187,1750661432786,-154.0,0.00023649,2]
[367104188,1750661432795,-151.0,0.00023649,2]
[367104190,1750661432804,-154.0,0.00023649,2]
[367104192,1750661432813,-151.0,0.00023649,2]
[367104194,1750661432823,-154.0,0.00023649,2]
[367104196,1750661432832,-151.0,0.00023649,2]
[367104198,1750661432841,-154.0,0.00023649,2]
[367104200,1750661432851,-151.0,0.00023649,2]
[367104202,1750661432860,-154.0,0.00023649,2]
[367104204,1750661432873,-151.0,0.00023649,2]
[367104206,1750661432883,-166.0,0.00023649,2]
[367104208,1750661432892,-155.93888828,0.00023649,2]
[367104210,1750661432901,-151.0,0.00023649,2]
[367104211,1750661432912,-166.0,0.00023649,2]
[367104212,1750661432921,-151.0,0.00023649,2]
[367104214,1750661432930,-151.0,0.00023649,2]
[367104216,1750661432940,-250.0,0.00023659,2]
[367104218,1750661432949,-150.0,0.00023705,2]
[367104220,1750661432959,-150.0,0.0002372,2]
[367104222,1750661432968,-150.0,0.00023732,2]
[367104224,1750661432978,-150.0,0.00023733,2]
[367104225,1750661432987,-1000.0,0.00023734,2]
[367104226,1750661432996,-200.0,0.00023746,2]
[367104227,1750661433005,-150.0,0.00023748,2]
[367104228,1750661433014,-150.0,0.00023757,2]
[367104229,1750661433025,-150.0,0.00023758,2]
[367104230,1750661433034,-150.0,0.00023767,2]
[367104231,1750661433044,-150.0,0.00023769,2]
[367104232,1750661433053,-150.0,0.0002377,2]
[367104233,1750661433063,-150.0,0.00023771,2]
[367104234,1750661433072,-150.0,0.00023773,2]
[367104235,1750661433082,-150.0,0.00023789,2]
[367104236,1750661433091,-150.0,0.00023789,2]
[367104237,1750661433101,-1000.0,0.00023789,2]
[367104238,1750661433110,-150.0,0.00023793,2]
[367104239,1750661433120,-150.0,0.00023799,2]
[367104240,1750661433129,-300.0,0.00023803,2]
[367104241,1750661433139,-200.0,0.00023807,2]
[367104242,1750661433148,-300.0,0.00023807,2]
[367104243,1750661433158,-200.0,0.00023808,2]
[367104244,1750661433167,-150.0,0.0002381,2]
[367104245,1750661433176,-150.0,0.0002381,2]
[367104246,1750661433186,-150.0,0.00023811,2]
[367104247,1750661433195,-153.08620769,0.00023812,2]
[367104248,1750661433204,-150.0,0.00023819,2]
[367104249,1750661433214,-298.97,0.00023836,2]
[367104250,1750661433223,-294.80730543,0.00023836,2]
[367104251,1750661433232,-156.587,0.00023836,2]
[367104252,1750661433242,-775.56517969,0.00023837,2]
[367104253,1750661433252,-150.0,0.00023837,2]
[367104254,1750661433261,-150.0,0.00023851,2]
[367104255,1750661433271,-150.0,0.00023855,2]
[367104256,1750661433281,-150.0,0.00023856,2]
[367104257,1750661433291,-150.0,0.00023861,2]
[367104258,1750661433301,-300.0,0.00023864,2]
[367104259,1750661433310,-247.99824482,0.00023893,2]
[367104260,1750661433319,-1000.0,0.00023897,2]
[367104261,1750661433329,-150.0,0.00023898,2]
[367104262,1750661433338,-150.0,0.00023898,2]
[367104263,1750661433348,-1572.54706945,0.000239,10]
[367104264,1750661433357,-150.0,0.00023902,2]
[367104265,1750661433366,-150.0,0.00023912,2]
[367104266,1750661433375,-150.0,0.00023921,2]
[367104267,1750661433384,-515.40538145,0.00023922,2]
[367104268,1750661433394,-150.0,0.00023929,2]
[367104269,1750661433403,-150.0,0.00023932,2]
[367104270,1750661433412,-1000.0,0.00023947,2]
[367104271,1750661433421,-150.0,0.00023962,2]
[367104272,1750661433431,-150.0,0.00023964,2]
[367104273,1750661433440,-150.0,0.00023965,2]
[367104274,1750661433451,-150.0,0.00023971,2]
[367104275,1750661433460,-150.0,0.00023977,2]
[367104276,1750661433469,-150.0,0.0002398,2]
[367104277,1750661433478,-150.0,0.00023982,2]
[367104278,1750661433487,-310.71119593,0.00023999,4]
[367104279,1750661433497,-5930.77046665,0.00024,2]
[367104280,1750661433507,-1647.44590376,0.00024,3]
[367104281,1750661433516,-295.98896733,0.00024,2]
[367104282,1750661433525,-200.0,0.00024,2]
[367104283,1750661433535,-158.2,0.00024,2]
[367104284,1750661433544,-3844.46362,0.00024,2]
[367104285,1750661433553,-3844.46363,0.0002414,2]
[367104286,1750661433563,-200.0,0.0002424,2]
[367104287,1750661433572,-250.0,0.00024261,2]
[367104288,1750661433582,-1572.54706931,0.00024279,10]
[367104289,1750661433591,-1000.0,0.00024315,2]
[367104290,1750661433601,-309.90014815,0.00024384,2]
[367104291,1750661433610,-170.3,0.00024445,2]
[367104292,1750661433620,-450.0,0.00024548,2]
[367104293,1750661433630,-150.0,0.00024633,2]
[367104294,1750661433640,-150.0,0.00024633,2]
[367104295,1750661433649,-3844.46362,0.0002464,2]
[367104296,1750661433659,-3096.2943093,0.0002465,2]
[367104297,1750661433668,-2000.19979709,0.0002465,2]
[367104298,1750661433678,-1000.0,0.00024658,2]
[367104299,1750661433687,-1572.54706931,0.00024659,11]
[367104300,1750661433697,-150.0,0.00024843,4]
[367104301,1750661433706,-200.0,0.00025019,5]
[367104302,1750661433716,-1572.54706931,0.00025038,12]
[367104303,1750661433726,-150.0,0.00025054,4]
[367104304,1750661433735,-3844.46363,0.0002514,2]
[367104305,1750661433744,-3153.57429688,0.000252,3]
[367104306,1750661433754,-150.0,0.00025264,4]
[367104307,1750661433763,-6476.18960155,0.000253,2]
[367104308,1750661433773,-868.74450062,0.00025398,2]
[367104309,1750661433786,-856.12,0.00025398,2]
[367104310,1750661433797,-450.28342561,0.00025398,2]
[367104311,1750661433844,-1068.08161532,0.00025398,2]
[367104312,1750661433855,-489.60076268,0.00025398,2]
[367104313,1750661433891,-847.9385958,0.00025398,2]
[367104320,1750661438520,-151.0,0.00023649,2]
[367104321,1750661438531,-151.0,0.00023649,2]
[367104322,1750661438541,-151.0,0.00023649,2]
[367104323,1750661438551,-153.81368887,0.00023649,2]
[367104324,1750661438561,-1657.10661268,0.00025398,2]
[367104325,1750661438571,-1572.54706931,0.00025417,13]
[367104326,1750661438581,-150.0,0.00025475,4]
[367104327,1750661438592,-500.0,0.00025488,7]
[367104328,1750661438603,-945.0,0.00025491,2]
[367104329,1750661438613,-151.0,0.00025498,2]
[367104330,1750661438623,-500.0,0.00025498,2]
[367104331,1750661438635,-7142.856,0.00025498,2]
[367104332,1750661438645,-646.24989934,0.00025498,2]
[367104333,1750661438655,-300.0,0.00025498,2]
[367104334,1750661438664,-151.0,0.00025498,2]
[367104335,1750661438674,-1000.0,0.00025498,2]
[367104336,1750661438684,-1000.0,0.00025498,2]
[367104337,1750661438695,-500.0,0.00025498,2]
[367104338,1750661438704,-1000.0,0.00025498,2]
[367104339,1750661438714,-500.0,0.00025498,2]
[367104340,1750661438723,-151.0,0.00025498,2]
[367104341,1750661438734,-300.0,0.00025498,2]
[367104342,1750661438744,-1000.0,0.00025498,2]
[367104343,1750661438754,-207.4,0.00025498,2]
[367104344,1750661438763,-500.0,0.00025498,2]
[367104345,1750661438773,-668.65185757,0.00025498,2]
[367104346,1750661438783,-300.0,0.00025498,2]
[367104347,1750661438793,-1000.0,0.00025498,2]
[367104348,1750661438803,-500.0,0.00025498,2]
[367104349,1750661438812,-300.0,0.00025498,2]
[367104350,1750661438821,-1000.0,0.00025498,2]
[367104352,1750661438831,-500.0,0.00025498,2]
[367104354,1750661438840,-151.0,0.00025498,2]
[367104356,1750661438850,-300.0,0.00025498,2]
[367104358,1750661438860,-1000.0,0.00025498,2]
[367104359,1750661438874,-500.0,0.00025498,2]
[367104360,1750661438884,-151.0,0.00025498,2]
[367104361,1750661438893,-300.0,0.00025498,2]
[367104362,1750661438903,-1000.0,0.00025498,2]
[367104363,1750661438914,-500.0,0.00025498,2]
[367104364,1750661438925,-151.0,0.00025498,2]
[367104365,1750661438935,-300.0,0.00025498,2]
[367104366,1750661438944,-1000.0,0.00025498,2]
[367104367,1750661438954,-500.0,0.00025498,2]
[367104368,1750661438964,-151.0,0.00025498,2]
[367104369,1750661438973,-300.0,0.00025498,2]
[367104372,1750661438983,-500.0,0.00025498,2]
[367104374,1750661438992,-1000.0,0.00025498,2]
[367104376,1750661439002,-151.0,0.00025498,2]